fUSD/lending_fUSD_20260414
["ID","MTS","AMOUNT","RATE_DAILY","PERIOD"]
[420479104,1776139304356,-1000.0,9.164e-05,2]
[420479109,1776139339301,-300.0,9.163e-05,2]
[420479110,1776139339350,-223.0,9.164e-05,3]
[420479111,1776139339419,-164.0,9.164e-05,3]
[420479112,1776139339497,-313.0,9.164e-05,2]
[420479113,1776139340723,-1000.0,9.164e-05,2]
[420479114,1776139340987,-1000.0,9.164e-05,2]
[420479115,1776139341520,-1000.0,9.164e-05,2]
[420479116,1776139341728,-1000.0,9.164e-05,2]
[420479117,1776139341992,-1000.0,9.164e-05,2]
[420479118,1776139342393,-1000.0,9.164e-05,2]
[420479119,1776139342646,-1000.0,9.164e-05,2]
[420479120,1776139343074,-1000.0,9.164e-05,2]
[420479121,1776139343386,-1000.0,9.164e-05,2]
[420479122,1776139343685,-1000.0,9.164e-05,2]
[420479123,1776139344055,-1000.0,9.164e-05,2]
[420479124,1776139344512,-1000.0,9.164e-05,2]
[420479125,1776139344825,-1000.0,9.164e-05,2]
[420479126,1776139345069,-1000.0,9.164e-05,2]
[420479127,1776139345481,-1000.0,9.164e-05,2]
[420479128,1776139345783,-1000.0,9.164e-05,2]
[420479129,1776139346119,-1000.0,9.164e-05,2]
[420479130,1776139347131,-1000.0,9.164e-05,2]
[420479131,1776139348528,-1000.0,9.164e-05,2]
[420479132,1776139348758,-500.0,9.163e-05,2]
[420479133,1776139348800,-500.0,9.163e-05,2]
[420479134,1776139349185,-48.47541773,9.163e-05,2]
[420479135,1776139349231,-500.0,9.163e-05,2]
[420479136,1776139349294,-451.52458227,9.163e-05,2]
[420479137,1776139349470,-48.47541773,9.163e-05,2]
[420479138,1776139349527,-627.25312855,9.163e-05,2]
[420479139,1776139349567,-324.27145372,9.163e-05,2]
[420479140,1776139350401,-175.72854628,9.163e-05,2]
[420479141,1776139350432,-500.0,9.163e-05,2]
[420479142,1776139350465,-324.27145372,9.163e-05,2]
[420479143,1776139350632,-175.72854628,9.163e-05,2]
[420479144,1776139350661,-500.0,9.163e-05,2]
[420479145,1776139350700,-324.27145372,9.163e-05,2]
[420479146,1776139352137,-175.72854628,9.163e-05,2]
[420479147,1776139352205,-161.20869438,9.163e-05,2]
[420479148,1776139352250,-500.0,9.163e-05,2]
[420479149,1776139352294,-163.06275934,9.163e-05,2]
[420479150,1776139352462,-336.93724066,9.163e-05,2]
[420479151,1776139352499,-500.0,9.163e-05,2]
[420479152,1776139352536,-163.06275934,9.164e-05,2]
[420479153,1776139352939,-1000.0,9.164e-05,2]
[420479154,1776139353152,-1000.0,9.164e-05,2]
[420479155,1776139353526,-1000.0,9.164e-05,2]
[420479156,1776139353700,-1000.0,9.164e-05,2]
[420479157,1776139353910,-1000.0,9.164e-05,2]
[420479158,1776139354223,-1000.0,9.164e-05,2]
[420479159,1776139354362,-4878.06233716,9.164e-05,2]
[420479160,1776139355740,-1000.0,9.164e-05,2]
[420479161,1776139355889,-10000.01,9.164e-05,2]
[420479162,1776139356396,-1000.0,9.164e-05,2]
[420479163,1776139357439,-1000.0,9.164e-05,2]
[420479164,1776139359469,-1000.0,9.164e-05,2]
[420479165,1776139360589,-1000.0,9.164e-05,2]
[420479166,1776139361677,-1000.0,9.164e-05,2]
[420479167,1776139362629,-1000.0,9.164e-05,2]
[420479168,1776139363350,-10000.01,9.164e-05,2]
[420479212,1776139450615,-1000.0,8.94e-05,2]
[420479213,1776139452625,-1000.0,8.94e-05,2]
[420479214,1776139452744,-1000.0,8.94e-05,2]
[420479215,1776139453007,-1000.0,8.94e-05,2]
[420479216,1776139453359,-1000.0,8.94e-05,2]
[420479217,1776139453774,-1000.0,8.94e-05,2]
[420479218,1776139453971,-1000.0,8.94e-05,2]
[420479219,1776139454330,-1000.0,8.94e-05,2]
[420479220,1776139454697,-1000.0,8.94e-05,2]
[420479221,1776139454991,-1000.0,8.94e-05,2]
[420479222,1776139455413,-549.03,8.94e-05,2]
[420479223,1776139455456,-450.97,9.064e-05,2]
[420479224,1776139471765,-1000.0,9.064e-05,2]
[420479225,1776139472081,-1000.0,9.064e-05,2]
[420479226,1776139472424,-1000.0,9.064e-05,2]
[420479227,1776139472816,-1000.0,9.064e-05,2]
[420479228,1776139473635,-1000.0,9.064e-05,2]
[420479229,1776139474690,-1000.0,9.064e-05,2]
[420479230,1776139474781,-1000.0,9.064e-05,2]
[420479231,1776139474845,-1000.0,9.064e-05,2]
[420479232,1776139474964,-1000.0,9.064e-05,2]
[420479233,1776139476013,-1000.0,9.064e-05,2]
[420479234,1776139476400,-1000.0,9.064e-05,2]
[420479235,1776139476687,-1000.0,9.064e-05,2]
[420479236,1776139477051,-1000.0,9.064e-05,2]
[420479237,1776139477417,-1000.0,9.064e-05,2]
[420479238,1776139477705,-1000.0,9.064e-05,2]
[420479239,1776139478092,-1000.0,9.064e-05,2]
[420479240,1776139478734,-1000.0,9.064e-05,2]
[420479241,1776139478801,-1000.0,9.064e-05,2]
[420479242,1776139479395,-1000.0,9.064e-05,2]
[420479243,1776139479688,-1000.0,9.064e-05,2]
[420479244,1776139480780,-1000.0,9.064e-05,2]
[420479245,1776139481087,-1000.0,9.064e-05,2]
[420479246,1776139481159,-1000.0,9.064e-05,2]
[420479247,1776139481586,-1000.0,9.064e-05,2]
[420479248,1776139481996,-1000.0,9.064e-05,2]
[420479249,1776139483130,-1000.0,9.064e-05,2]
[420479250,1776139483503,-1000.0,9.064e-05,2]
[420479251,1776139485971,-1000.0,9.064e-05,2]
[420479252,1776139487325,-1000.0,9.064e-05,2]
[420479253,1776139488521,-1000.0,9.064e-05,2]
[420479254,1776139489606,-1000.0,9.064e-05,2]
[420479255,1776139490624,-1000.0,9.064e-05,2]
[420479256,1776139491735,-1000.0,9.064e-05,2]
[420479257,1776139492735,-1000.0,9.064e-05,2]
[420479258,1776139513760,-300.0,9.063e-05,2]
[420479259,1776139513803,-1056.794668,9.063e-05,2]
[420479295,1776139670398,500.0,8.916e-05,2]
[420479297,1776139732885,4500.01,9e-05,2]
[420479298,1776139732934,3305.23356243,9e-05,2]
[420479299,1776139738898,1694.77643757,8.9e-05,2]
[420479300,1776139738931,5000.01,8.9e-05,2]
[420479301,1776139738963,5000.01,8.9e-05,2]
[420479302,1776139739007,5000.01,8.9e-05,2]
[420479303,1776139739056,5000.01,8.9e-05,2]
[420479304,1776139739098,5000.01,8.9e-05,2]
[420479305,1776139739137,5000.01,8.9e-05,2]
[420479306,1776139739164,5000.01,8.9e-05,2]
[420479307,1776139739193,5000.01,8.9e-05,2]
[420479308,1776139739220,5000.01,8.9e-05,2]
[420479309,1776139741951,-300.0,8.899e-05,2]
[420479310,1776139749507,-3594.95,8.9e-05,2]
[420479311,1776139749703,-5000.01,8.9e-05,2]
[420479312,1776139749851,-5000.01,8.9e-05,2]
[420479313,1776139749956,-5000.01,8.9e-05,2]
[420479314,1776139752189,-5000.01,8.9e-05,2]
[420479315,1776139760874,-5000.01,8.9e-05,2]
[420479316,1776139760919,-5000.01,8.9e-05,2]
[420479317,1776139760988,-5000.01,8.9e-05,2]
[420479318,1776139761129,-1283.93356243,8.9e-05,2]
[420479319,1776139761181,-804.0,8.9e-05,3]
[420479320,1776139762885,164.0,8.9e-05,3]
[420479321,1776139801162,660.14287514,8.964e-05,2]
[420479322,1776139801201,5000.01,8.964e-05,2]
[420479323,1776139801254,5000.01,8.964e-05,2]
[420479324,1776139801293,5000.01,8.964e-05,2]
[420479325,1776139801332,5000.01,8.964e-05,2]
[420479326,1776139801365,5000.01,8.964e-05,2]
[420479327,1776139801403,5000.01,8.964e-05,2]
[420479328,1776139801435,5000.01,8.964e-05,2]
[420479329,1776139801471,5000.01,8.964e-05,2]
[420479330,1776139801516,5000.01,8.964e-05,2]
[420479331,1776139806720,-4175.86712486,8.964e-05,2]
[420479332,1776139806735,-5000.01,8.964e-05,2]
[420479333,1776139815024,-153.0,8.9e-05,3]
[420479334,1776139815135,-4694.01,8.964e-05,2]
[420479335,1776139815170,-5000.01,8.964e-05,2]
[420479336,1776139815228,-5000.01,8.964e-05,2]
[420479337,1776139815327,-5000.01,8.964e-05,2]
[420479338,1776139815556,-5000.01,8.964e-05,2]
[420479339,1776139815754,-5000.01,8.964e-05,2]
[420479340,1776139815859,-5000.01,8.964e-05,2]
[420479341,1776139815929,-5000.01,8.964e-05,2]
[420479344,1776139831942,-314.57995572,8.9e-05,3]
[420479345,1776139831969,-448.42004428,8.9e-05,3]
[420479346,1776139831993,-1065.16227668,8.964e-05,2]
[420479347,1776139832017,-574.81083747,8.964e-05,2]
[420479348,1776139832030,-1142.64297778,8.964e-05,2]
[420479349,1776139832116,-108388.4608401,8.964e-05,2]
[420479350,1776139832128,-1254.41808677,8.964e-05,2]
[420479351,1776139832146,-388.8323745,8.964e-05,2]
[420479352,1776139832169,-4775.8559646,8.964e-05,2]
[420479353,1776139832181,-2531.69785087,8.964e-05,2]
[420479354,1776139832204,-14630.54283471,8.964e-05,2]
[420479360,1776139832272,-458.44747329,8.964e-05,2]
[420479363,1776139832303,-301.48251273,8.964e-05,2]
[420479371,1776139832346,-1191.8204925,8.964e-05,2]
[420479374,1776139832366,-2412.11522595,8.964e-05,2]
[420479379,1776139832393,-1950.17403298,8.964e-05,2]
[420479386,1776139832478,-5267.33691747,8.964e-05,2]
[420479388,1776139832500,-3698.33092069,8.964e-05,2]
[420479392,1776139838110,-171.71,8.856e-05,2]
[420479393,1776139838126,-500.0,8.963e-05,2]
[420479394,1776139838139,-466.61363812,8.963e-05,2]
[420479395,1776139838150,-1472.91963238,8.964e-05,2]
[420479396,1776139838353,-330.47737862,8.964e-05,2]
[420479397,1776139838365,-1000.000001,8.964e-05,2]
[420479398,1776139838477,-568.41954472,8.964e-05,2]
[420479463,1776139843409,-264.56333182,8.964e-05,2]
[420479464,1776139843477,-564.11572434,8.964e-05,2]
[420479465,1776139843489,-630.62881612,8.964e-05,2]
[420479476,1776139850517,-0.61112566,8.964e-05,2]
[420479477,1776139850672,-3302.40057009,8.964e-05,2]
[420479478,1776139850763,-1738.02322196,8.964e-05,2]
[420479479,1776139850783,-3056.19022377,8.964e-05,2]
[420479480,1776139850809,-905.06119488,8.964e-05,2]
[420479481,1776139850824,-8441.88632382,8.964e-05,2]
[420479482,1776139850863,-1208.41684316,8.964e-05,2]
[420479483,1776139850877,-4323.43327946,8.964e-05,2]
[420479484,1776139850997,-379.52324628,8.964e-05,2]
[420479485,1776139853260,-319.79427467,8.964e-05,2]
[420479486,1776139853282,-32857.07213842,8.964e-05,2]
[420479487,1776139853306,-26319.14026162,8.964e-05,2]
[420479488,1776139853965,-37622.58864812,8.964e-05,2]
[420479489,1776139853975,-7023.99805755,9e-05,2]
[420479490,1776139853988,-5000.0,9e-05,2]
[420479491,1776139853999,-5000.0,9e-05,2]
[420479492,1776139854017,-5000.0,9e-05,2]
[420479493,1776139854027,-1600.0,9.06e-05,2]
[420479494,1776139854039,-267.45353064,9.063e-05,2]
[420479495,1776139854050,-467.84968018,9.063e-05,2]
[420479496,1776139854074,-197.50245287,9.063e-05,2]
[420479497,1776139854085,-500.0,9.063e-05,2]
[420479498,1776139854112,-500.0,9.063e-05,2]
[420479499,1776139854126,-465.42611302,9.063e-05,2]
[420479500,1776139854145,-150.0,9.063e-05,2]
[420479501,1776139854172,-300.0,9.063e-05,2]
[420479502,1776139854185,-1200.0,9.063e-05,2]
[420479503,1776139854209,-3298.17590218,9.064e-05,2]
[420479504,1776139854222,-156.0,9.064e-05,3]
[420479505,1776139854234,-500.0,9.064e-05,2]
[420479506,1776139854264,-19180.84,9.064e-05,2]
[420479507,1776139854296,-1756.04756811,9.064e-05,2]
[420479508,1776139854319,-743.95243189,9.064e-05,2]
[420479509,1776139854336,-551.84103775,9.18e-05,2]
[420479510,1776139854392,-1105.60870405,9.18e-05,2]
[420479511,1776139854478,-8574.70448286,9.18e-05,2]
[420479512,1776139922804,-298.75913842,8.864e-05,2]
[420479513,1776139938231,-4894.89,8.984e-05,2]
[420479514,1776139938294,-210.23,8.984e-05,2]
[420479515,1776139941072,1929.16,4.6e-05,2]
[420479516,1776139941248,1929.16,4.842e-05,2]
[420479517,1776139941517,1929.16,5.084e-05,2]
[420479518,1776139942199,1929.16,5.326e-05,2]
[420479519,1776139942304,1929.16,5.568e-05,2]
[420479520,1776139942409,354.21,5.81e-05,2]
[420479521,1776139942443,1574.95,5.81e-05,2]
[420479522,1776139942634,1929.16,6.053e-05,2]
[420479523,1776139942749,1929.16,6.295e-05,2]
[420479524,1776139942956,1929.16,6.537e-05,2]
[420479525,1776139944092,1929.16,6.779e-05,2]
[420479526,1776139944148,708.42,7.021e-05,2]
[420479527,1776139944176,1220.74,7.021e-05,2]
[420479528,1776139944302,1929.16,7.263e-05,2]
[420479529,1776139944456,1929.16,7.505e-05,2]
[420479530,1776139944589,1929.16,7.747e-05,2]
[420479531,1776139944884,1929.16,7.989e-05,2]
[420479532,1776139945029,1062.63,8.232e-05,2]
[420479533,1776139945069,866.53,8.232e-05,2]
[420479534,1776139945147,1929.16,8.474e-05,2]
[420479535,1776139945250,1929.16,8.716e-05,2]
[420479536,1776139945710,1929.16,8.958e-05,2]
[420479537,1776139945839,500.0,8.96e-05,2]
[420479538,1776139953658,-177.04751019,9.062e-05,2]
[420479539,1776139979166,10000.01,8.964e-05,2]
[420479540,1776139979200,10000.01,8.964e-05,2]
[420479541,1776139979244,10000.01,8.964e-05,2]
[420479542,1776139979291,10000.01,8.964e-05,2]
[420479543,1776139979330,10000.01,8.964e-05,2]
[420479544,1776139979382,10000.01,8.964e-05,2]
[420479545,1776140243164,-154.0,8.964e-05,3]
[420479546,1776140243205,-156.0,8.964e-05,3]
[420479547,1776140243251,-432.0,8.964e-05,3]
[420479548,1776140277248,1062.71,8.256e-05,2]
[420479549,1776140282049,358.9294023,7.989e-05,2]
[420479550,1776140334415,2500.0,8.864e-05,2]
[420479551,1776140447586,6078.3705977,8.224e-05,2]
[420479552,1776140447610,3913.5694023,8.224e-05,2]
[420479553,1776140450622,6086.4405977,8.224e-05,2]
[420479554,1776140450657,7991.8194023,8.224e-05,2]
[420479555,1776140488129,2008.1905977,8.785e-05,2]
[420479556,1776140488167,3051.8684023,8.785e-05,2]
[420479557,1776140488213,343.953,8.785e-05,2]
[420479558,1776140494486,2500.0,8.864e-05,2]
[420479559,1776140513031,1612.85,8.194e-05,2]
[420479563,1776140581217,300.0,8.958e-05,2]
[420479564,1776140642264,150.0,8.958e-05,2]
[420479565,1776140646508,522.59,8.146e-05,2]
[420479566,1776140650118,3815.0109,8.864e-05,2]
[420479567,1776140656177,2500.0,8.864e-05,2]
[420479568,1776140701727,1200.0,8.958e-05,2]
[420479569,1776140711032,1512.4091,8.864e-05,2]
[420479570,1776140711062,5265.0402,8.864e-05,2]
[420479571,1776140736025,169.19,6.526e-05,2]
[420479572,1776140761197,300.0,8.958e-05,2]
[420479573,1776140791186,152.0,8.669e-05,2]
[420479574,1776140791590,152.0,8.669e-05,2]
[420479575,1776140791715,1500.0,8.157e-05,2]
[420479576,1776140792172,152.0,8.669e-05,2]
[420479577,1776140792921,152.0,8.669e-05,2]
[420479578,1776140820511,2157.7798,8.864e-05,2]
[420479579,1776140820545,342.2202,8.864e-05,2]
[420479580,1776140822190,150.0,8.958e-05,2]
[420479581,1776140891082,2000.0,8.219e-05,2]
[420479582,1776140941058,300.0,8.958e-05,2]
[420479583,1776140982337,2500.0,8.864e-05,2]
[420479584,1776141001301,1200.0,8.958e-05,2]
[420479585,1776141001909,150.0,8.958e-05,2]
[420479586,1776141026187,510.23,8.219e-05,2]
[420479589,1776141032112,-343.29292514,8.959e-05,2]
[420479590,1776141032125,-377.83473021,8.959e-05,2]
[420479591,1776141032167,-8473.17739327,8.959e-05,2]
[420479592,1776141032224,-1078.9904722,8.959e-05,2]
[420479593,1776141032247,-200.0,8.959e-05,2]
[420479594,1776141032271,-743.50770149,8.959e-05,2]
[420479595,1776141032290,-151.0,8.959e-05,2]
[420479596,1776141032323,-500.0,8.959e-05,2]
[420479597,1776141032339,-500.0,8.959e-05,2]
[420479598,1776141032361,-500.0,8.959e-05,2]
[420479599,1776141032402,-388.3193365,8.959e-05,2]
[420479602,1776141034231,-111.6806635,8.959e-05,2]
[420479603,1776141034241,-500.0,8.959e-05,2]
[420479604,1776141034257,-1498.16622192,8.959e-05,2]
[420479605,1776141034280,-14.07734602,8.959e-05,2]
[420479606,1776141034293,-174.61919141,8.959e-05,2]
[420479607,1776141034304,-500.0,8.959e-05,2]
[420479608,1776141034319,-179.83178257,8.959e-05,2]
[420479609,1776141034349,-320.16821743,8.959e-05,2]
[420479610,1776141034360,-209.40437684,8.959e-05,2]
[420479611,1776141034375,-693.3919763,8.959e-05,2]
[420479612,1776141034388,-500.0,8.959e-05,2]
[420479613,1776141034398,-500.0,8.959e-05,2]
[420479614,1776141034411,-500.0,8.959e-05,2]
[420479615,1776141034425,-279.9045709,8.959e-05,2]
[420479616,1776141034450,-500.0,8.959e-05,2]
[420479617,1776141034477,-235.75327194,8.959e-05,2]
[420479618,1776141034491,-244.476143,8.959e-05,2]
[420479619,1776141034519,-253.52176029,8.959e-05,2]
[420479620,1776141034542,-262.90206542,8.959e-05,2]
[420479621,1776141034579,-272.62944185,8.959e-05,2]
[420479622,1776141034601,-282.71673119,8.959e-05,2]
[420479623,1776141034644,-293.17725025,8.959e-05,2]
[420479624,1776141034654,-304.02480851,8.959e-05,2]
[420479625,1776141034690,-315.27372642,8.959e-05,2]
[420479626,1776141034699,-151.0,8.959e-05,2]
[420479627,1776141034713,-326.9388543,8.959e-05,2]
[420479628,1776141034724,-339.03559191,8.959e-05,2]
[420479629,1776141034738,-337.4,8.959e-05,2]
[420479630,1776141034747,-161.10065646,8.959e-05,2]
[420479631,1776141034758,-578.20924308,8.962e-05,2]
[420479632,1776141034768,-500.0,8.962e-05,2]
[420479633,1776141034787,-209.40437684,8.962e-05,2]
[420479634,1776141034799,-500.0,8.963e-05,2]
[420479635,1776141034809,-630.04262946,8.963e-05,2]
[420479636,1776141034826,-135.09105861,8.963e-05,2]
[420479637,1776141034845,-364.90894139,8.963e-05,2]
[420479638,1776141034855,-500.0,8.963e-05,2]
[420479639,1776141034887,-247.92105651,8.963e-05,2]
[420479640,1776141034897,-500.0,8.963e-05,2]
[420479641,1776141034919,-500.0,8.963e-05,2]
[420479642,1776141034929,-500.0,8.963e-05,2]
[420479643,1776141034938,-500.0,8.963e-05,2]
[420479644,1776141034966,-500.0,8.963e-05,2]
[420479645,1776141034975,-500.0,8.963e-05,2]
[420479646,1776141034985,-500.0,8.963e-05,2]
[420479647,1776141034998,-500.0,8.963e-05,2]
[420479648,1776141035007,-500.0,8.963e-05,2]
[420479649,1776141035022,-500.0,8.963e-05,2]
[420479650,1776141035033,-500.0,8.963e-05,2]
[420479651,1776141035043,-500.0,8.963e-05,2]
[420479652,1776141035062,-500.0,8.963e-05,2]
[420479653,1776141035072,-500.0,8.963e-05,2]
[420479654,1776141035081,-500.0,8.963e-05,2]
[420479655,1776141035095,-500.0,8.963e-05,2]
[420479656,1776141035110,-500.0,8.963e-05,2]
[420479657,1776141035120,-500.0,8.963e-05,2]
[420479658,1776141035134,-500.0,8.963e-05,2]
[420479659,1776141035143,-500.0,8.963e-05,2]
[420479660,1776141035155,-500.0,8.963e-05,2]
[420479661,1776141035167,-500.0,8.963e-05,2]
[420479662,1776141035183,-500.0,8.963e-05,2]
[420479663,1776141035192,-500.0,8.963e-05,2]
[420479664,1776141035202,-500.0,8.963e-05,2]
[420479665,1776141035216,-500.0,8.963e-05,2]
[420479666,1776141035230,-270.5,8.963e-05,2]
[420479667,1776141035239,-500.0,8.963e-05,2]
[420479668,1776141035251,-500.0,8.963e-05,2]
[420479669,1776141035273,-500.0,8.963e-05,2]
[420479670,1776141035288,-500.0,8.963e-05,2]
[420479671,1776141035324,-186.77575655,8.963e-05,2]
[420479672,1776141035335,-500.0,8.963e-05,2]
[420479673,1776141035359,-152.0,8.964e-05,2]
[420479674,1776141035370,-152.0,8.964e-05,2]
[420479675,1776141035382,-152.0,8.964e-05,2]
[420479676,1776141035404,-152.0,8.964e-05,2]
[420479677,1776141035417,-156.0,8.964e-05,3]
[420479678,1776141035433,-753.0,8.964e-05,3]
[420479679,1776141035443,-154.0,8.964e-05,3]
[420479680,1776141035453,-164.0,8.964e-05,3]
[420479681,1776141035473,-3534.36582088,8.964e-05,2]
[420479682,1776141035561,-88280.81643612,8.964e-05,2]
[420479692,1776141038477,-1230.72968212,8.964e-05,2]
[420479693,1776141038699,-446.26987052,8.964e-05,2]
[420479694,1776141038780,-69147.12643601,8.964e-05,2]
[420479695,1776141038803,-4430.59999998,8.964e-05,2]
[420479696,1776141038818,-7168.0,8.964e-05,2]
[420479800,1776141040464,-645.30094867,8.964e-05,2]
[420479829,1776141040928,-2878.09324054,8.964e-05,2]
[420479832,1776141040959,-3393.09770897,8.964e-05,2]
[420479842,1776141041090,-702.64656493,8.964e-05,2]
[420479844,1776141041102,-1386.70499995,8.964e-05,2]
[420479854,1776141041230,-277.1987,8.964e-05,2]
[420479856,1776141041251,-356.90157413,8.964e-05,2]
[420479865,1776141041356,-8212.0783977,8.964e-05,2]
[420479868,1776141041404,-10000.01,8.964e-05,2]
[420479952,1776141043182,-10000.01,8.964e-05,2]
[420479955,1776141043354,-10000.01,8.964e-05,2]
[420479956,1776141043442,-5038.18168835,8.964e-05,2]
[420479958,1776141043533,-10000.01,8.964e-05,2]
[420479961,1776141043571,-41049.2077956,8.964e-05,2]
[420479962,1776141043591,-931.86771549,8.964e-05,2]
[420479963,1776141043625,-4362.25192,8.964e-05,2]
[420479964,1776141043655,-840.22596696,8.964e-05,2]
[420479965,1776141043871,-10000.01,8.964e-05,2]
[420479966,1776141043931,-10000.01,8.964e-05,2]
[420479967,1776141043969,-10000.01,8.964e-05,2]
[420479968,1776141044089,-10000.01,8.964e-05,2]
[420479970,1776141044179,-10000.01,8.964e-05,2]
[420479976,1776141046234,-10000.01,8.964e-05,2]
[420479977,1776141046360,-494.5,8.964e-05,2]
[420479978,1776141046533,-41326.6846784,8.964e-05,2]
[420479979,1776141046621,-20592.60526196,8.964e-05,2]
[420479980,1776141046635,-11824.5,8.964e-05,2]
[420479981,1776141046668,-106533.328639,8.964e-05,2]
[420479982,1776141046682,-2934.4,8.964e-05,2]
[420479983,1776141046720,-76979.92044294,8.964e-05,2]
[420479991,1776141048849,-10000.01,8.964e-05,2]
[420479992,1776141049054,-10000.01,8.964e-05,2]
[420479993,1776141049211,-10000.01,8.964e-05,2]
[420479994,1776141049477,-10000.01,8.964e-05,2]
[420479995,1776141049584,-10000.01,8.964e-05,2]
[420479996,1776141049697,-10000.01,8.964e-05,2]
[420479997,1776141049878,-10000.01,8.964e-05,2]
[420479998,1776141049952,-10000.01,8.964e-05,2]
[420479999,1776141050068,-10000.01,8.964e-05,2]
[420480000,1776141050233,-10000.01,8.964e-05,2]
[420480001,1776141052480,-10000.01,8.964e-05,2]
[420480002,1776141052652,-10000.01,8.964e-05,2]
[420480003,1776141053815,442.37408172,8.964e-05,30]
[420480004,1776141054457,442.37408172,8.99e-05,30]
[420480005,1776141055254,442.37408172,9e-05,30]
[420480006,1776141056791,442.37408172,9.014e-05,30]
[420480007,1776141060506,-10000.01,8.964e-05,2]
[420480008,1776141060665,-2697.12711078,8.964e-05,2]
[420480009,1776141060699,-500.0,8.964e-05,2]
[420480010,1776141061139,300.0,8.963e-05,2]
[420480011,1776141061338,3305.75577844,8.88e-05,2]
[420480012,1776141061373,10000.01,8.88e-05,2]
[420480013,1776141061416,10000.01,8.88e-05,2]
[420480014,1776141064802,-6394.25422156,8.88e-05,2]
[420480015,1776141064892,-10000.01,8.88e-05,2]
[420480016,1776141073514,-10000.01,8.88e-05,2]
[420480017,1776141073692,-10000.01,8.88e-05,2]
[420480018,1776141073809,-10000.01,8.88e-05,2]
[420480019,1776141073971,-10000.01,8.88e-05,2]
[420480022,1776141099232,502.0,8.853e-05,2]
[420480023,1776141133056,723.0,8.853e-05,3]
[420480024,1776141141108,156.0,8.853e-05,3]
[420480025,1776141186088,687.0,8.853e-05,3]
[420480026,1776141189872,-194.8198,8.862e-05,2]
[420480027,1776141189915,-150.0,8.862e-05,2]
[420480028,1776141197015,151.0,8.86e-05,2]
[420480029,1776141201006,300.0,8.862e-05,2]
[420480030,1776141212881,7460.00760421,8.862e-05,2]
[420480031,1776141226387,488.2776,8.859e-05,2]
[420480032,1776141249166,652.0,8.859e-05,3]
[420480034,1776141277148,161.10065647,8.862e-05,2]
[420480035,1776141301354,300.0,8.861e-05,2]
[420480036,1776141301400,300.0,8.861e-05,2]
[420480037,1776141301464,300.0,8.861e-05,2]
[420480038,1776141301512,338.62413932,8.861e-05,2]
[420480039,1776141301540,861.37586068,8.861e-05,2]
[420480040,1776141311483,154.0,8.862e-05,3]
[420480041,1776141311535,620.0,8.862e-05,3]
[420480042,1776141334302,339.5508,8.862e-05,2]
[420480043,1776141339942,277.0,8.862e-05,2]
[420480044,1776141342757,7748.08333932,8.763e-05,2]
[420480045,1776141342800,10000.01,8.763e-05,2]
[420480046,1776141342846,10000.01,8.763e-05,2]
[420480047,1776141342891,10000.01,8.763e-05,2]
[420480048,1776141342937,10000.01,8.763e-05,2]
[420480049,1776141343013,10000.01,8.763e-05,2]
[420480050,1776141343049,10000.01,8.763e-05,2]
[420480051,1776141343103,10000.01,8.763e-05,2]
[420480052,1776141343146,10000.01,8.763e-05,2]
[420480053,1776141343183,10000.01,8.763e-05,2]
[420480054,1776141356453,176.94963268,8.862e-05,30]
[420480055,1776141356676,265.42444902,8.863e-05,30]
[420480056,1776141399184,1852.42,8.356e-05,2]
[420480057,1776141432984,211.2,8.359e-05,2]
[420480058,1776141462882,7856.35,8.281e-05,2]
[420480059,1776141491322,80.04,8.281e-05,3]
[420480060,1776141491374,508.96,8.281e-05,3]
[420480061,1776141505518,-300.0,8.762e-05,2]
[420480062,1776141520519,-250.0,8.763e-05,2]
[420480063,1776141542159,300.0,8.762e-05,2]
[420480064,1776141547529,559.0,8.763e-05,3]
[420480065,1776141601122,300.0,8.762e-05,2]
[420480066,1776141601161,300.0,8.762e-05,2]
[420480067,1776141601242,1200.0,8.762e-05,2]
[420480068,1776141608733,155.0,8.763e-05,3]
[420480069,1776141608878,190.0,8.763e-05,3]
[420480070,1776141661068,300.0,8.762e-05,2]
[420480071,1776141666679,503.0,8.763e-05,3]
[420480072,1776141722057,300.0,8.762e-05,2]
[420480073,1776141722155,150.0,8.762e-05,2]
[420480074,1776141727389,497.0,8.763e-05,3]
[420480075,1776141792408,472.0,8.763e-05,3]